lending/lending_fUSD_20251022
["ID","MTS","AMOUNT","RATE_DAILY","PERIOD"]
[392102938,1761161475645,-153.0,0.0004424,120]
[392102939,1761161475656,-153.0,0.0004424,120]
[392102940,1761161475665,-153.0,0.0004424,120]
[392102941,1761161475674,-153.0,0.0004424,120]
[392102942,1761161475684,-153.0,0.0004424,120]
[392102943,1761161475693,-153.0,0.0004424,120]
[392102944,1761161475703,-153.0,0.0004424,120]
[392102945,1761161475714,-153.0,0.0004424,120]
[392102946,1761161475724,-153.0,0.0004424,120]
[392102947,1761161475733,-153.0,0.0004424,120]
[392102948,1761161475742,-153.0,0.0004424,120]
[392102949,1761161475751,-153.0,0.0004424,120]
[392102950,1761161475762,-153.0,0.00044242,120]
[392102951,1761161475771,-180.53014428,0.00044247,15]
[392102952,1761161475782,-3699.39499015,0.00044283,15]
[392102953,1761161475791,-10204.98837307,0.000443,5]
[392102954,1761161475801,-4390.0,0.00044341,5]
[392102955,1761161475811,-1034.5,0.00044356,30]
[392102956,1761161475820,-300.0,0.00044356,30]
[392102957,1761161475829,-300.0,0.00044356,30]
[392102958,1761161475838,-820.46,0.00044356,30]
[392102959,1761161475849,-176.26,0.00044356,30]
[392102960,1761161475860,-2193.25,0.00044359,120]
[392102961,1761161475869,-887.37,0.00044382,120]
[392102962,1761161475879,-500.0,0.00044382,120]
[392102963,1761161475889,-789.86,0.00044382,120]
[392102964,1761161475899,-292.42,0.00044383,7]
[392102965,1761161475908,-4265.19,0.00044383,30]
[392102966,1761161475918,-538.57,0.00044383,120]
[392102967,1761161475927,-709.57,0.00044383,120]
[392102968,1761161475937,-4110.15,0.00044383,120]
[392102969,1761161475947,-889.38,0.00044383,120]
[392102970,1761161475957,-777.67,0.00044383,120]
[392102971,1761161475966,-537.84,0.00044383,120]
[392102972,1761161475975,-150.0,0.00044384,60]
[392102973,1761161475985,-150.0,0.00044384,60]
[392102974,1761161475994,-150.0,0.00044384,60]
[392102975,1761161476003,-150.0,0.00044384,60]
[392102976,1761161476013,-150.0,0.00044384,60]
[392102977,1761161476022,-150.0,0.00044384,60]
[392102978,1761161476033,-150.0,0.00044384,60]
[392102979,1761161476042,-150.0,0.00044384,60]
[392102980,1761161476051,-150.0,0.00044384,60]
[392102981,1761161476061,-150.0,0.00044384,60]
[392102982,1761161476070,-150.0,0.00044384,60]
[392102983,1761161476079,-150.0,0.00044384,60]
[392102984,1761161476089,-200.0,0.00044384,60]
[392102985,1761161476098,-150.0,0.00044384,60]
[392102986,1761161476108,-200.0,0.00044384,60]
[392102987,1761161476118,-150.0,0.00044384,60]
[392102988,1761161476128,-150.0,0.00044384,60]
[392102989,1761161476137,-154.08751079,0.00044384,60]
[392102990,1761161476251,-500.0,0.00044384,60]
[392102991,1761161476265,-150.0,0.00044384,60]
[392102992,1761161476275,-150.0,0.00044384,60]
[392102993,1761161476284,-150.0,0.00044384,60]
[392102994,1761161476294,-150.0,0.00044384,2]
[392102995,1761161476305,-500.0,0.00044384,60]
[392102996,1761161476315,-150.0,0.00044384,2]
[392102997,1761161476325,-150.0,0.00044384,60]
[392102998,1761161476336,-150.0,0.00044384,60]
[392102999,1761161476345,-150.0,0.00044384,60]
[392103000,1761161476355,-150.0,0.00044384,2]
[392103001,1761161476365,-150.0,0.00044384,60]
[392103002,1761161476374,-150.0,0.00044384,60]
[392103003,1761161476383,-150.0,0.00044384,60]
[392103004,1761161476393,-500.0,0.00044385,120]
[392103005,1761161476402,-764.41,0.00044385,120]
[392103006,1761161476412,-571.58,0.00044385,30]
[392103007,1761161476421,-804.79,0.00044385,120]
[392103008,1761161476430,-500.0,0.00044385,120]
[392103009,1761161476439,-527.97,0.00044385,120]
[392103010,1761161476450,-791.58,0.00044385,120]
[392103011,1761161476460,-780.17,0.00044385,120]
[392103012,1761161476469,-990.94,0.00044385,120]
[392103013,1761161476479,-1044.35,0.00044385,120]
[392103014,1761161476488,-589.57,0.00044385,120]
[392103015,1761161476498,-1596.27,0.00044385,120]
[392103016,1761161476507,-837.99,0.00044385,120]
[392103017,1761161476516,-500.0,0.00044385,120]
[392103018,1761161476525,-858.34,0.00044385,2]
[392103019,1761161476535,-1101.44,0.00044385,120]
[392103020,1761161476545,-668.32,0.00044385,120]
[392103021,1761161476555,-1263.06,0.00044385,120]
[392103022,1761161476564,-1623.35,0.00044385,120]
[392103023,1761161476573,-617.0,0.00044385,120]
[392103024,1761161476583,-500.0,0.00044385,120]
[392103025,1761161476592,-500.0,0.00044385,120]
[392103026,1761161476601,-1404.73,0.00044385,120]
[392103027,1761161476611,-636.1,0.00044385,120]
[392103028,1761161476620,-825.9,0.00044385,120]
[392103029,1761161476629,-857.87,0.00044385,120]
[392103030,1761161476639,-707.53,0.00044385,120]
[392103031,1761161476648,-739.66203477,0.00044387,120]
[392103032,1761161476657,-151.3961097,0.00044401,120]
[392103033,1761161476667,-180.53014428,0.0004442,15]
[392103034,1761161476676,-500.0,0.00044421,10]
[392103035,1761161476686,-1000.0,0.00044421,10]
[392103036,1761161476695,-365.0,0.00044438,2]
[392103037,1761161476704,-150.0,0.00044439,60]
[392103038,1761161476713,-150.0,0.00044439,60]
[392103039,1761161476722,-150.0,0.00044439,60]
[392103040,1761161476733,-150.0,0.00044439,60]
[392103041,1761161476742,-150.0,0.00044439,60]
[392103042,1761161476751,-150.0,0.00044439,60]
[392103043,1761161476761,-150.0,0.00044439,60]
[392103044,1761161476771,-150.0,0.00044439,60]
[392103045,1761161476781,-500.0,0.00044439,60]
[392103046,1761161476790,-150.0,0.00044439,60]
[392103047,1761161476799,-150.0,0.00044439,60]
[392103048,1761161476809,-500.0,0.00044439,60]
[392103049,1761161476819,-150.0,0.00044439,60]
[392103050,1761161476828,-150.0,0.00044439,60]
[392103051,1761161476838,-200.0,0.0004444,7]
[392103052,1761161476848,-200.0,0.0004444,7]
[392103053,1761161476858,-387.0,0.0004446,7]
[392103054,1761161476867,-206.0,0.00044487,7]
[392103055,1761161476877,-233.47,0.00044491,14]
[392103056,1761161476886,-150.0,0.00044494,60]
[392103057,1761161476896,-150.0,0.00044494,60]
[392103058,1761161476905,-200.0,0.00044494,60]
[392103059,1761161476914,-150.0,0.00044494,60]
[392103060,1761161476924,-204.10916528,0.00044494,60]
[392103061,1761161476934,-150.0,0.00044494,60]
[392103062,1761161476944,-150.0,0.00044494,60]
[392103063,1761161476954,-500.0,0.00044494,60]
[392103064,1761161476963,-150.0,0.00044494,60]
[392103065,1761161476973,-150.0,0.00044494,60]
[392103066,1761161476983,-500.0,0.00044494,60]
[392103067,1761161476993,-150.0,0.00044494,60]
[392103068,1761161477002,-150.0,0.00044494,60]
[392103069,1761161477012,-1205.25,0.00044498,120]
[392103070,1761161477021,-824.35,0.00044498,120]
[392103071,1761161477031,-623.15,0.00044498,120]
[392103072,1761161477041,-500.0,0.00044498,120]
[392103073,1761161477050,-891.43,0.00044498,120]
[392103074,1761161477061,-500.0,0.00044498,120]
[392103075,1761161477071,-500.0,0.00044498,120]
[392103076,1761161477081,-500.0,0.00044498,120]
[392103077,1761161477090,-500.0,0.00044498,120]
[392103078,1761161477100,-166.72,0.00044498,120]
[392103079,1761161477110,-691.13,0.00044498,120]
[392103080,1761161477119,-500.0,0.00044498,120]
[392103081,1761161477130,-500.0,0.00044498,120]
[392103082,1761161477139,-500.0,0.00044498,120]
[392103083,1761161477149,-358.93177751,0.00044498,120]
[392103084,1761161477158,-500.0,0.00044498,120]
[392103085,1761161477167,-3246.52,0.00044498,120]
[392103086,1761161477178,-5477.48,0.00044498,120]
[392103087,1761161477187,-521.96,0.00044498,120]
[392103088,1761161477197,-593.34,0.00044498,120]
[392103089,1761161477207,-665.52,0.00044498,120]
[392103090,1761161477216,-500.0,0.00044498,120]
[392103091,1761161477226,-454.15259006,0.00044498,120]
[392103092,1761161477235,-500.0,0.00044498,120]
[392103093,1761161477245,-500.0,0.00044498,120]
[392103094,1761161477258,-506.47815905,0.00044498,120]
[392103095,1761161477268,-1079.01,0.00044498,120]
[392103096,1761161477277,-692.82,0.00044498,120]
[392103097,1761161477287,-1016.54,0.00044498,120]
[392103098,1761161477297,-651.4,0.00044498,120]
[392103099,1761161477307,-1074.58,0.00044498,120]
[392103100,1761161477317,-1074.58,0.00044498,120]
[392103101,1761161477326,-1074.58,0.00044498,120]
[392103102,1761161477337,-1074.58,0.00044498,120]
[392103103,1761161477346,-1074.81,0.00044498,120]
[392103104,1761161477356,-558.32,0.00044498,120]
[392103105,1761161477366,-1203.5,0.00044498,120]
[392103106,1761161477375,-1203.5,0.00044498,120]
[392103107,1761161477385,-1203.5,0.00044498,120]
[392103108,1761161477395,-1203.5,0.00044498,120]
[392103109,1761161477404,-1203.72323385,0.00044498,120]
[392103110,1761161477413,-609.65,0.00044498,120]
[392103111,1761161477423,-2024.8,0.00044498,120]
[392103112,1761161477432,-2024.8,0.00044498,120]
[392103113,1761161477442,-2024.8,0.00044498,120]
[392103114,1761161477452,-2024.8,0.00044498,120]
[392103115,1761161477462,-2024.82,0.00044498,120]
[392103116,1761161477471,-500.0,0.00044499,120]
[392103117,1761161477481,-548.33,0.00044499,120]
[392103118,1761161477490,-500.0,0.00044499,120]
[392103119,1761161477500,-606.82,0.00044499,120]
[392103120,1761161477509,-671.52,0.00044499,120]
[392103121,1761161477519,-199.59880031,0.00044499,120]
[392103122,1761161477528,-500.0,0.00044499,120]
[392103123,1761161477537,-500.0,0.00044499,120]
[392103124,1761161477547,-500.0,0.00044499,120]
[392103125,1761161477556,-500.0,0.00044499,120]
[392103126,1761161477565,-500.0,0.00044499,120]
[392103127,1761161477575,-500.0,0.00044499,120]
[392103128,1761161477584,-500.0,0.00044499,120]
[392103129,1761161477593,-500.0,0.00044499,120]
[392103130,1761161477603,-224.26857366,0.00044499,120]
[392103131,1761161477612,-500.0,0.00044499,120]
[392103132,1761161477622,-500.0,0.00044499,120]
[392103133,1761161477631,-500.0,0.00044499,120]
[392103134,1761161477640,-500.0,0.00044499,120]
[392103135,1761161477651,-500.0,0.00044499,120]
[392103136,1761161477661,-640.79,0.00044499,60]
[392103137,1761161477670,-500.0,0.00044499,120]
[392103138,1761161477680,-524.04,0.00044499,120]
[392103139,1761161477690,-500.0,0.00044499,120]
[392103140,1761161477699,-500.0,0.00044499,120]
[392103141,1761161477708,-500.0,0.00044499,120]
[392103142,1761161477718,-500.0,0.00044499,120]
[392103143,1761161477729,-500.0,0.00044499,30]
[392103144,1761161477738,-500.0,0.00044499,120]
[392103145,1761161477747,-500.0,0.00044499,120]
[392103146,1761161477757,-500.0,0.00044499,120]
[392103147,1761161477766,-215.42352291,0.00044499,120]
[392103148,1761161477775,-500.0,0.00044499,120]
[392103149,1761161477785,-500.0,0.00044499,120]
[392103150,1761161477794,-695.69,0.00044499,120]
[392103151,1761161477803,-894.37,0.00044499,120]
[392103152,1761161477813,-760.01,0.00044499,120]
[392103153,1761161477822,-853.51,0.00044499,120]
[392103154,1761161477831,-961.77,0.00044499,120]
[392103155,1761161477840,-500.0,0.00044499,120]
[392103156,1761161477849,-500.0,0.00044499,120]
[392103157,1761161477859,-370.12007193,0.00044499,120]
[392103158,1761161477869,-567.15,0.00044499,120]
[392103159,1761161477878,-604.59,0.00044499,120]
[392103160,1761161477887,-500.0,0.00044499,120]
[392103161,1761161477896,-500.0,0.00044499,120]
[392103162,1761161477906,-500.0,0.00044499,120]
[392103163,1761161477916,-500.0,0.00044499,120]
[392103164,1761161477925,-1141.01,0.00044499,120]
[392103165,1761161477934,-500.0,0.00044499,120]
[392103166,1761161477944,-597.81,0.00044499,120]
[392103167,1761161477954,-500.0,0.00044499,120]
[392103168,1761161477963,-500.0,0.00044499,120]
[392103169,1761161477972,-500.0,0.00044499,120]
[392103170,1761161477982,-500.0,0.00044499,120]
[392103171,1761161477992,-555.98,0.00044499,12]
[392103172,1761161478001,-300.0,0.00044499,120]
[392103173,1761161478011,-670.61,0.00044499,120]
[392103174,1761161478020,-504.29761914,0.00044499,120]
[392103175,1761161478030,-539.75608841,0.00044499,120]
[392103176,1761161478040,-500.0,0.00044499,120]
[392103177,1761161478056,-500.0,0.00044499,120]
[392103178,1761161478071,-551.16885383,0.00044499,120]
[392103179,1761161478080,-839.26,0.00044499,120]
[392103180,1761161478090,-500.0,0.00044499,120]
[392103181,1761161478099,-639.08,0.00044499,120]
[392103182,1761161478109,-500.0,0.00044499,120]
[392103183,1761161478119,-664.72,0.00044499,120]
[392103184,1761161478128,-726.53,0.00044499,120]
[392103185,1761161478138,-500.0,0.00044499,120]
[392103186,1761161478147,-739.95,0.00044499,120]
[392103187,1761161478157,-916.3,0.00044499,120]
[392103188,1761161478167,-759.76,0.00044499,120]
[392103189,1761161478176,-1418.79,0.00044499,120]
[392103190,1761161478187,-500.0,0.00044499,120]
[392103191,1761161478196,-731.53,0.00044499,120]
[392103192,1761161478206,-500.0,0.00044499,30]
[392103193,1761161478216,-506.05785992,0.00044499,120]
[392103194,1761161478226,-708.56,0.00044499,120]
[392103195,1761161478236,-500.0,0.00044499,120]
[392103196,1761161478246,-834.33,0.00044499,120]
[392103197,1761161478262,-500.0,0.00044499,120]
[392103198,1761161478273,-1087.18,0.00044499,120]
[392103199,1761161478282,-577.29,0.00044499,120]
[392103200,1761161478292,-625.58,0.00044499,120]
[392103201,1761161478303,-583.51,0.00044499,120]
[392103202,1761161478313,-500.0,0.00044499,120]
[392103203,1761161478323,-500.0,0.00044499,120]
[392103204,1761161478332,-768.13,0.00044499,120]
[392103205,1761161478342,-801.13,0.00044499,120]
[392103206,1761161478352,-500.0,0.00044499,120]
[392103207,1761161478361,-1029.39,0.00044499,120]
[392103208,1761161478371,-799.25,0.00044499,120]
[392103209,1761161478380,-613.54,0.00044499,120]
[392103210,1761161478389,-875.35,0.00044499,120]
[392103211,1761161478398,-255.913054,0.000445,120]
[392103212,1761161478408,-255.913054,0.000445,120]
[392103213,1761161478417,-255.913054,0.000445,120]
[392103214,1761161478430,-255.913051,0.000445,120]
[392103215,1761161478443,-10000.0,0.000445,2]
[392103216,1761161478612,-2592.0,0.00044547,2]
[392103217,1761161478622,-150.0,0.00044548,60]
[392103218,1761161478632,-200.0,0.00044548,60]
[392103219,1761161478642,-206.21851696,0.00044548,60]
[392103220,1761161478651,-150.0,0.00044548,60]
[392103221,1761161478660,-500.0,0.00044548,60]
[392103222,1761161478671,-150.0,0.00044548,60]
[392103223,1761161478680,-300.0,0.00044548,60]
[392103224,1761161478691,-150.0,0.00044548,60]
[392103225,1761161478701,-150.0,0.00044548,60]
[392103226,1761161478710,-168.0,0.00044553,2]
[392103227,1761161478718,-642.20695,0.0004456,24]
[392103228,1761161478728,-2858.32932905,0.00044588,15]
[392103229,1761161478737,-180.53014428,0.00044593,16]
[392103230,1761161478748,-8200.0,0.000446,16]
[392103231,1761161478758,-500.0,0.00044603,60]
[392103232,1761161478770,-168.0,0.0004463,2]
[392103233,1761161478780,-421.4938633,0.0004465,2]
[392103234,1761161478789,-5067.00595964,0.0004465,2]
[392103235,1761161478798,-292.42,0.00044657,7]
[392103236,1761161478808,-4265.19,0.00044687,30]
[392103237,1761161478817,-538.57,0.00044687,120]
[392103238,1761161478826,-709.57,0.00044687,120]
[392103239,1761161478836,-4110.15,0.00044687,120]
[392103240,1761161478846,-889.38,0.00044687,120]
[392103241,1761161478855,-777.67,0.00044687,120]
[392103242,1761161478865,-887.37,0.00044687,120]
[392103243,1761161478875,-537.84,0.00044687,120]
[392103244,1761161478884,-500.0,0.00044687,120]
[392103245,1761161478894,-789.86,0.00044687,120]
[392103246,1761161478903,-548.33,0.00044688,120]
[392103247,1761161478912,-548.33,0.00044688,120]
[392103248,1761161478922,-243.41176405,0.00044688,120]
[392103249,1761161478932,-606.82,0.00044688,120]
[392103250,1761161478941,-606.82,0.00044688,120]
[392103251,1761161478951,-671.52,0.00044688,120]
[392103252,1761161478960,-671.52,0.00044688,120]
[392103253,1761161478974,-500.0,0.00044688,120]
[392103254,1761161478983,-500.0,0.00044688,120]
[392103255,1761161478993,-500.0,0.00044688,120]
[392103256,1761161479002,-500.0,0.00044688,120]
[392103257,1761161479012,-500.0,0.00044688,120]
[392103258,1761161479021,-500.0,0.00044688,120]
[392103259,1761161479031,-500.0,0.00044688,120]
[392103260,1761161479040,-500.0,0.00044688,120]
[392103261,1761161479049,-500.0,0.00044688,120]
[392103262,1761161479059,-500.0,0.00044688,120]
[392103263,1761161479068,-500.0,0.00044688,120]
[392103264,1761161479078,-500.0,0.00044688,120]
[392103265,1761161479087,-500.0,0.00044688,120]
[392103266,1761161479097,-500.0,0.00044688,120]
[392103267,1761161479106,-500.0,0.00044688,120]
[392103268,1761161479115,-500.0,0.00044688,120]
[392103269,1761161479125,-500.0,0.00044688,120]
[392103270,1761161479135,-500.0,0.00044688,120]
[392103271,1761161479144,-500.0,0.00044688,120]
[392103272,1761161479158,-500.0,0.00044688,120]
[392103273,1761161479167,-500.0,0.00044688,120]
[392103274,1761161479181,-500.0,0.00044688,120]
[392103275,1761161479190,-500.0,0.00044688,120]
[392103276,1761161479199,-500.0,0.00044688,120]
[392103277,1761161479209,-500.0,0.00044688,120]
[392103278,1761161479219,-500.0,0.00044688,120]
[392103279,1761161479229,-640.79,0.00044688,60]
[392103280,1761161479238,-640.79,0.00044688,60]
[392103281,1761161479248,-500.0,0.00044688,120]
[392103282,1761161479261,-500.0,0.00044688,120]
[392103283,1761161479270,-524.04,0.00044688,120]
[392103284,1761161479279,-524.04,0.00044688,120]
[392103285,1761161479289,-500.0,0.00044688,120]
[392103286,1761161479298,-500.0,0.00044688,120]
[392103287,1761161479307,-500.0,0.00044688,120]
[392103288,1761161479317,-500.0,0.00044688,120]
[392103289,1761161479326,-500.0,0.00044688,120]
[392103290,1761161479335,-500.0,0.00044688,120]
[392103291,1761161479345,-500.0,0.00044688,120]
[392103292,1761161479355,-500.0,0.00044688,120]
[392103293,1761161479364,-500.0,0.00044688,30]
[392103294,1761161479376,-500.0,0.00044688,30]
[392103295,1761161479387,-500.0,0.00044688,120]
[392103296,1761161479397,-500.0,0.00044688,120]
[392103297,1761161479409,-159.5782014,0.00044688,120]
[392103298,1761161479420,-500.0,0.00044688,120]
[392103299,1761161479430,-500.0,0.00044688,120]
[392103300,1761161479440,-500.0,0.00044688,120]
[392103301,1761161479449,-237.2392745,0.00044688,120]
[392103302,1761161479459,-695.69,0.00044688,120]
[392103303,1761161479469,-695.69,0.00044688,120]
[392103304,1761161479480,-894.37,0.00044688,120]
[392103305,1761161479490,-894.37,0.00044688,120]
[392103306,1761161479500,-760.01,0.00044688,120]
[392103307,1761161479510,-760.01,0.00044688,120]
[392103308,1761161479520,-853.51,0.00044688,120]
[392103309,1761161479529,-853.51,0.00044688,120]
[392103310,1761161479539,-961.77,0.00044688,120]
[392103311,1761161479548,-961.77,0.00044688,120]
[392103312,1761161479560,-500.0,0.00044688,120]
[392103313,1761161479576,-500.0,0.00044688,120]
[392103314,1761161479586,-500.0,0.00044688,120]
[392103315,1761161479596,-500.0,0.00044688,120]
[392103316,1761161479605,-567.15,0.00044688,120]
[392103317,1761161479615,-567.15,0.00044688,120]
[392103318,1761161479625,-604.59,0.00044688,120]
[392103319,1761161479634,-604.59,0.00044688,120]
[392103320,1761161479644,-500.0,0.00044688,120]
[392103321,1761161479654,-500.0,0.00044688,120]
[392103322,1761161479663,-500.0,0.00044688,120]
[392103323,1761161479672,-500.0,0.00044688,120]
[392103324,1761161479682,-500.0,0.00044688,120]
[392103325,1761161479692,-500.0,0.00044688,120]
[392103326,1761161479701,-500.0,0.00044688,120]
[392103327,1761161479711,-500.0,0.00044688,120]
[392103328,1761161479720,-1141.01,0.00044688,120]
[392103329,1761161479730,-1141.01,0.00044688,120]
[392103330,1761161479740,-500.0,0.00044688,120]
[392103331,1761161479749,-500.0,0.00044688,120]
[392103332,1761161479764,-597.81,0.00044688,120]
[392103333,1761161479780,-597.81,0.00044688,120]
[392103334,1761161479790,-500.0,0.00044688,120]
[392103335,1761161479800,-500.0,0.00044688,120]
[392103336,1761161479810,-500.0,0.00044688,120]
[392103337,1761161479820,-500.0,0.00044688,120]
[392103338,1761161479830,-500.0,0.00044688,120]
[392103339,1761161479840,-500.0,0.00044688,120]
[392103340,1761161479850,-500.0,0.00044688,120]
[392103341,1761161479861,-555.98,0.00044688,12]
[392103342,1761161479872,-555.98,0.00044688,12]
[392103343,1761161479882,-300.0,0.00044688,120]
[392103344,1761161479892,-300.0,0.00044688,120]
[392103345,1761161479903,-670.61,0.00044688,120]
[392103346,1761161479913,-670.61,0.00044688,120]
[392103347,1761161479924,-500.0,0.00044688,120]
[392103348,1761161479934,-500.0,0.00044688,120]
[392103349,1761161479944,-500.0,0.00044688,120]
[392103350,1761161479956,-500.0,0.00044688,120]
[392103351,1761161479966,-839.26,0.00044688,120]
[392103352,1761161479976,-839.26,0.00044688,120]
[392103353,1761161479985,-500.0,0.00044688,120]
[392103354,1761161479995,-500.0,0.00044688,120]
[392103355,1761161480005,-639.08,0.00044688,120]
[392103356,1761161480014,-639.08,0.00044688,120]
[392103357,1761161480024,-500.0,0.00044688,120]
[392103358,1761161480033,-500.0,0.00044688,120]
[392103359,1761161480044,-664.72,0.00044688,120]
[392103360,1761161480053,-664.72,0.00044688,120]
[392103361,1761161480063,-726.53,0.00044688,120]
[392103362,1761161480073,-726.53,0.00044688,120]
[392103363,1761161480083,-500.0,0.00044688,120]
[392103364,1761161480092,-500.0,0.00044688,120]
[392103365,1761161480101,-739.95,0.00044688,120]
[392103366,1761161480111,-739.95,0.00044688,120]
[392103367,1761161480121,-916.3,0.00044688,120]
[392103368,1761161480131,-916.3,0.00044688,120]
[392103369,1761161480140,-759.76,0.00044688,120]
[392103370,1761161480150,-759.76,0.00044688,120]
[392103371,1761161480160,-1418.79,0.00044688,120]
[392103372,1761161480170,-1418.79,0.00044688,120]
[392103373,1761161480179,-500.0,0.00044688,120]
[392103374,1761161480189,-500.0,0.00044688,120]
[392103375,1761161480199,-731.53,0.00044688,120]
[392103376,1761161480209,-731.53,0.00044688,120]
[392103377,1761161480219,-500.0,0.00044688,30]
[392103378,1761161480228,-631.78039781,0.00044688,30]
[392103379,1761161480238,-708.56,0.00044688,120]
[392103380,1761161480247,-708.56,0.00044688,120]
[392103381,1761161480259,-500.0,0.00044688,120]
[392103382,1761161480268,-500.0,0.00044688,120]
[392103383,1761161480278,-834.33,0.00044688,120]
[392103384,1761161480287,-834.33,0.00044688,120]
[392103385,1761161480298,-500.0,0.00044688,120]
[392103386,1761161480308,-154.00171797,0.00044688,120]
[392103387,1761161480322,-1087.18,0.00044688,120]
[392103388,1761161480332,-1087.18,0.00044688,120]
[392103389,1761161480342,-577.29,0.00044688,120]
[392103390,1761161480352,-577.29,0.00044688,120]
[392103391,1761161480362,-625.58,0.00044688,120]
[392103392,1761161480373,-625.58,0.00044688,120]
[392103393,1761161480383,-583.51,0.00044688,120]
[392103394,1761161480393,-583.51,0.00044688,120]
[392103395,1761161480403,-500.0,0.00044688,120]
[392103396,1761161480412,-500.0,0.00044688,120]
[392103397,1761161480423,-500.0,0.00044688,120]
[392103398,1761161480433,-500.0,0.00044688,120]
[392103399,1761161480442,-768.13,0.00044688,120]
[392103400,1761161480452,-768.13,0.00044688,120]
[392103401,1761161480461,-801.13,0.00044688,120]
[392103402,1761161480471,-801.13,0.00044688,120]
[392103403,1761161480481,-500.0,0.00044688,120]
[392103404,1761161480491,-500.0,0.00044688,120]
[392103405,1761161480501,-1029.39,0.00044688,120]
[392103406,1761161480511,-1029.39,0.00044688,120]
[392103407,1761161480521,-799.25,0.00044688,120]
[392103408,1761161480531,-799.25,0.00044688,120]
[392103409,1761161480541,-613.54,0.00044688,120]
[392103410,1761161480550,-613.54,0.00044688,120]
[392103411,1761161480561,-875.35,0.00044688,120]
[392103412,1761161480571,-875.35,0.00044688,120]
[392103413,1761161480581,-500.0,0.00044697,120]
[392103414,1761161480590,-764.41,0.00044697,120]
[392103415,1761161480599,-571.58,0.00044697,30]
[392103416,1761161480608,-804.79,0.00044697,120]
[392103417,1761161480618,-500.0,0.00044697,120]
[392103418,1761161480627,-527.97,0.00044697,120]
[392103419,1761161480637,-791.58,0.00044697,120]
[392103420,1761161480647,-780.17,0.00044697,120]
[392103421,1761161480656,-990.94,0.00044697,120]
[392103422,1761161480666,-1044.35,0.00044697,120]
[392103423,1761161480675,-1596.27,0.00044697,120]
[392103424,1761161480685,-1205.25,0.00044697,120]
[392103425,1761161480844,-837.99,0.00044697,120]
[392103426,1761161480853,-824.35,0.00044697,120]
[392103427,1761161480863,-500.0,0.00044697,120]
[392103428,1761161480872,-858.34,0.00044697,2]
[392103429,1761161480882,-1101.44,0.00044697,120]
[392103430,1761161480891,-623.15,0.00044697,120]
[392103431,1761161480900,-668.32,0.00044697,120]
[392103432,1761161480911,-1263.06,0.00044697,120]
[392103433,1761161480921,-500.0,0.00044697,120]
[392103434,1761161480930,-1623.35,0.00044697,120]
[392103435,1761161480940,-891.43,0.00044697,120]
[392103436,1761161480949,-617.0,0.00044697,120]
[392103437,1761161480959,-500.0,0.00044697,120]